[Event "EYCC Open-U12 2019"]
[Site "Bratislava"]
[Date "2019.08.07"]
[Round "6.42"]
[White "De Reese, Elias"]
[Black "Musaev, Matej Elbek"]
[Result "1-0"]
[ECO "D00"]
[WhiteElo "1850"]
[BlackElo "1693"]
[Annotator "NA"]
[PlyCount "127"]
[EventDate "2019.08.02"]
[EventType "swiss"]
[EventCountry "SVK"]
[SourceTitle "playchess.com"]
[Source "ChessBase"]
[SourceQuality "1"]
[TimeControl "40/5400+30:1800+30"]

1. d4 {[%emt 0:00:00]} d5 {[%emt 0:00:00]} 2. Bf4 {[%emt 0:00:00]} e6 {[%emt 0:00:00]} 3. e3 {[%emt 0:00:16]} Nf6 {[%emt 0:00:07]} 4. Nf3 {[%emt 0:00:18]} c5 {[%emt 0:01:32]} 5. c3 {[%emt 0:00:26]} b6 {[%emt 0:00:15]} 6. Nbd2 {[%emt 0:00:33]} Bb7 {[%emt 0:00:09]} 7. Ne5 {[%emt 0:00:51]} Nc6 {[%emt 0:06:04]} 8. Bb5 {[%emt 0:01:29]} Rc8 {[%emt 0:03:58]} 9. Qa4 {[%emt 0:02:42]} a6 {[%emt 0:01:41]} 10. Bxc6+ {[%emt 0:01:54]} Bxc6 {[%emt 0:00:07]} 11. Nxc6 {[%emt 0:00:07]} Qd7 {[%emt 0:00:06]} 12. Qxa6 {[%emt 0:03:08]} Rxc6 {[%emt 0:01:04]} 13. Nf3 {[%emt 0:01:41]} Bd6 {[%emt 0:09:14]} 14. Bxd6 {[%emt 0:01:27]} Rxd6 {[%emt 0:00:31]} 15. Ne5 {[%emt 0:01:55]} Qc7 {[%emt 0:01:30]} 16. Qb5+ {[%emt 0:05:30]} Nd7 {[%emt 0:00:14]} 17. O-O {[%emt 0:01:36]} O-O {[%emt 0:00:07]} 18. Nxd7 {[%emt 0:00:56]} Rxd7 {[%emt 0:00:06]} 19. a4 {[%emt 0:00:54]} Ra8 {[%emt 0:01:09]} 20. b4 {[%emt 0:04:43]} Rd6 {[%emt 0:03:39]} 21. dxc5 {[%emt 0:02:50]} bxc5 {[%emt 0:00:09]} 22. a5 {[%emt 0:00:16]} g6 {[%emt 0:01:55]} 23. Qe2 {[%emt 0:02:10]} Rda6 {[%emt 0:01:31]} 24. Ra3 {[%emt 0:02:51]} R8a7 {[%emt 0:05:04]} 25. Rfa1 {[%emt 0:02:53]} Ra8 {[%emt 0:00:34]} 26. Qb2 {[%emt 0:01:02]} c4 {[%emt 0:01:16]} 27. R1a2 {[%emt 0:04:23]} Qd8 {[%emt 0:00:51]} 28. g3 {[%emt 0:00:54]} Rb8 {[%emt 0:16:50]} 29. b5 {[%emt 0:03:25]} Raa8 {[%emt 0:01:14]} 30. b6 {[%emt 0:02:02]} Ra6 {[%emt 0:00:08]} 31. Qb5 {[%emt 0:03:56]} Qc8 {[%emt 0:00:08]} 32. Ra4 {[%emt 0:00:47]} Kg7 {[%emt 0:02:05]} 33. e4 {[%emt 0:02:14]} Qb7 {[%emt 0:01:41]} 34. Rd2 {[%emt 0:01:23]} Rd8 {[%emt 0:00:25]} 35. exd5 {[%emt 0:02:28]} Rxd5 {[%emt 0:01:33]} 36. Rxd5 {[%emt 0:00:17]} exd5 {[%emt 0:00:10]} 37. Qc5 {[%emt 0:00:52]} Qd7 {[%emt 0:00:58]} 38. Ra1 {[%emt 0:00:38]} h6 {[%emt 0:02:03]} 39. Qc7 {[%emt 0:01:23]} Qe6 {[%emt 0:00:13]} 40. Qb7 {[%emt 0:00:00]} Rxa5 {[%emt 0:00:00]} 41. Rb1 {[%emt 0:04:19]} Rb5 {[%emt 0:00:48]} 42. Rxb5 {[%emt 0:05:00]} Qe1+ {[%emt 0:00:44]} 43. Kg2 {[%emt 0:00:36]} Qe4+ {[%emt 0:00:36]} 44. Kf1 {[%emt 0:01:15]} Qh1+ {[%emt 0:01:31]} 45. Ke2 {[%emt 0:00:45]} Qe4+ {[%emt 0:00:36]} 46. Kd2 {[%emt 0:01:04]} Qd3+ {[%emt 0:00:52]} 47. Kc1 {[%emt 0:00:45]} Qxc3+ {[%emt 0:00:40]} 48. Kb1 {[%emt 0:00:45]} Qd3+ {[%emt 0:01:15]} 49. Ka2 {[%emt 0:02:02]} Qc2+ {[%emt 0:04:42]} 50. Ka3 {[%emt 0:00:43]} Qc1+ {[%emt 0:04:32]} 51. Kb4 {[%emt 0:02:05]} c3 {[%emt 0:01:00]} 52. Qxd5 {[%emt 0:05:10]} c2 {[%emt 0:07:08]} 53. Rc5 {[%emt 0:06:04]} Qb2+ {[%emt 0:02:11]} 54. Qb3 {[%emt 0:01:45]} Qd4+ {[%emt 0:00:42]} 55. Kb5 {[%emt 0:02:40]} Qxc5+ {[%emt 0:02:04]} 56. Kxc5 {[%emt 0:01:09]} c1=Q+ {[%emt 0:00:36]} 57. Kb4 {[%emt 0:01:13]} Kg8 {[%emt 0:01:20]} 58. b7 {[%emt 0:02:54]} Qc7 {[%emt 0:00:41]} 59. Ka4 {[%emt 0:00:58]} Qc6+ {[%emt 0:00:47]} 60. Qb5 {[%emt 0:02:01]} Qc2+ {[%emt 0:00:43]} 61. Ka5 {[%emt 0:00:52]} Qa2+ {[%emt 0:01:21]} 62. Kb6 {[%emt 0:01:01]} Qxf2+ {[%emt 0:00:38]} 63. Kc7 {[%emt 0:00:56]} Qc2+ {[%emt 0:01:00]} 64. Qc6 {[%emt 0:00:59]} 1-0

[Event "EYCC Open-U12 2019"]
[Site "Bratislava"]
[Date "2019.08.07"]
[Round "6.44"]
[White "Franc, Borna"]
[Black "Trzebinski, Patryk"]
[Result "1-0"]
[ECO "B73"]
[WhiteElo "1826"]
[BlackElo "1679"]
[Annotator "NA"]
[PlyCount "149"]
[EventDate "2019.08.02"]
[EventType "swiss"]
[EventCountry "SVK"]
[SourceTitle "playchess.com"]
[Source "ChessBase"]
[SourceQuality "1"]
[TimeControl "40/5400+30:1800+30"]

1. e4 {[%emt 0:00:00]} c5 {[%emt 0:00:00]} 2. Nf3 {[%emt 0:00:00]} d6 {[%emt 0:00:00]} 3. d4 {[%emt 0:00:00]} cxd4 {[%emt 0:00:08]} 4. Nxd4 {[%emt 0:00:00]} Nf6 {[%emt 0:00:09]} 5. Nc3 {[%emt 0:00:04]} g6 {[%emt 0:00:10]} 6. Be2 {[%emt 0:00:16]} Bg7 {[%emt 0:00:14]} 7. O-O {[%emt 0:00:08]} O-O {[%emt 0:00:09]} 8. Be3 {[%emt 0:00:09]} Nc6 {[%emt 0:00:47]} 9. Qd2 {[%emt 0:00:21]} Be6 {[%emt 0:10:22]} 10. Nxe6 {[%emt 0:03:29]} fxe6 {[%emt 0:00:09]} 11. Rad1 {[%emt 0:01:16]} Rc8 {[%emt 0:07:55]} 12. Bc4 {[%emt 0:02:02]} Qd7 {[%emt 0:03:02]} 13. Bb3 {[%emt 0:02:46]} Ng4 {[%emt 0:10:13]} 14. f4 {[%emt 0:08:28]} Nxe3 {[%emt 0:08:23]} 15. Qxe3 {[%emt 0:00:04]} Kh8 {[%emt 0:00:33]} 16. Kh1 {[%emt 0:01:55]} Na5 {[%emt 0:06:37]} 17. Qxa7 {[%emt 0:00:25]} Nc4 {[%emt 0:05:08]} 18. Bxc4 {[%emt 0:04:54]} Rxc4 {[%emt 0:00:02]} 19. Rde1 {[%emt 0:10:56]} Bxc3 {[%emt 0:07:34]} 20. bxc3 {[%emt 0:00:03]} Ra4 {[%emt 0:00:59]} 21. Qb6 {[%emt 0:04:21]} Rxa2 {[%emt 0:19:36]} 22. Qb3 {[%emt 0:00:08]} Ra4 {[%emt 0:00:52]} 23. h3 {[%emt 0:02:41]} b5 {[%emt 0:03:00]} 24. Rf3 {[%emt 0:03:49]} d5 {[%emt 0:07:07]} 25. exd5 {[%emt 0:01:46]} exd5 {[%emt 0:00:33]} 26. Re5 {[%emt 0:13:02]} e6 {[%emt 0:03:10]} 27. g3 {[%emt 0:04:27]} Qc6 {[%emt 0:04:36]} 28. Kg2 {[%emt 0:01:47]} Re4 {[%emt 0:01:00]} 29. Rxe4 {[%emt 0:01:47]} dxe4 {[%emt 0:00:02]} 30. Re3 {[%emt 0:00:07]} Rd8 {[%emt 0:00:05]} 31. Qb4 {[%emt 0:02:06]} Qd6 {[%emt 0:02:23]} 32. Qxe4 {[%emt 0:09:09]} Qd5 {[%emt 0:00:30]} 33. Qxd5 {[%emt 0:00:22]} exd5 {[%emt 0:00:08]} 34. Kf3 {[%emt 0:00:16]} Rc8 {[%emt 0:00:44]} 35. Rd3 {[%emt 0:00:19]} Kg7 {[%emt 0:00:28]} 36. Ke3 {[%emt 0:00:08]} Kf6 {[%emt 0:00:09]} 37. Kd4 {[%emt 0:00:46]} Ke6 {[%emt 0:00:01]} 38. Re3+ {[%emt 0:00:11]} Kd6 {[%emt 0:00:03]} 39. Re5 {[%emt 0:00:13]} Rc4+ {[%emt 0:00:03]} 40. Kd3 {[%emt 0:00:00]} Rc8 {[%emt 0:00:00]} 41. h4 {[%emt 0:00:25]} h6 {[%emt 0:06:43]} 42. h5 {[%emt 0:00:14]} g5 {[%emt 0:01:30]} 43. Rf5 {[%emt 0:02:37]} gxf4 {[%emt 0:07:03]} 44. Rxf4 {[%emt 0:01:24]} Ke5 {[%emt 0:05:31]} 45. Rg4 {[%emt 0:01:08]} Rc6 {[%emt 0:01:46]} 46. Rf4 {[%emt 0:08:08]} Ra6 {[%emt 0:06:19]} 47. Rf7 {[%emt 0:00:21]} Ra3 {[%emt 0:02:39]} 48. Rb7 {[%emt 0:00:28]} Ra4 {[%emt 0:04:16]} 49. Rxb5 {[%emt 0:03:55]} Rg4 {[%emt 0:00:12]} 50. Rb6 {[%emt 0:00:01]} Rxg3+ {[%emt 0:00:20]} 51. Kd2 {[%emt 0:00:06]} Rh3 {[%emt 0:01:36]} 52. Rxh6 {[%emt 0:00:11]} d4 {[%emt 0:00:30]} 53. cxd4+ {[%emt 0:00:15]} Kxd4 {[%emt 0:00:05]} 54. Kc1 {[%emt 0:05:58]} Kc3 {[%emt 0:00:55]} 55. Rc6+ Kd4 {[%emt 0:00:30]} 56. h6 {[%emt 0:00:55]} Kd5 {[%emt 0:00:30]} 57. Rg6 {[%emt 0:00:54]} Kc4 {[%emt 0:00:30]} 58. Kb2 {[%emt 0:00:11]} Rh5 {[%emt 0:00:30]} 59. Ra6 {[%emt 0:00:29]} Kb5 {[%emt 0:00:04]} 60. Re6 {[%emt 0:00:46]} Kb4 {[%emt 0:00:12]} 61. Kc1 {[%emt 0:00:12]} Kc3 {[%emt 0:00:17]} 62. Rc6+ {[%emt 0:00:16]} Kd4 {[%emt 0:00:33]} 63. c3+ {[%emt 0:01:47]} Kd5 {[%emt 0:00:03]} 64. Rg6 {[%emt 0:03:23]} Kc4 {[%emt 0:00:12]} 65. Kd2 {[%emt 0:00:02]} Rh2+ {[%emt 0:02:06]} 66. Ke3 {[%emt 0:00:03]} Kxc3 {[%emt 0:00:11]} 67. Ke4 {[%emt 0:00:11]} Kc4 {[%emt 0:00:19]} 68. Ke5 {[%emt 0:00:07]} Kc5 {[%emt 0:00:09]} 69. Kf6 {[%emt 0:00:04]} Kd6 {[%emt 0:00:12]} 70. Kg7+ {[%emt 0:00:02]} Ke7 {[%emt 0:00:18]} 71. h7 {[%emt 0:00:04]} Rh5 {[%emt 0:00:11]} 72. h8=Q {[%emt 0:00:10]} Rh7+ {[%emt 0:01:03]} 73. Kxh7 {[%emt 0:00:16]} Kf7 {[%emt 0:00:03]} 74. Qg7+ {[%emt 0:00:10]} Ke8 {[%emt 0:00:04]} 75. Rf6 {[%emt 0:00:05]} 1-0

[Event "EYCC Open-U12 2019"]
[Site "Bratislava"]
[Date "2019.08.07"]
[Round "6.45"]
[White "Farmakoski, Georg"]
[Black "Guia, Artur Solovyov Eloy"]
[Result "1-0"]
[ECO "D37"]
[WhiteElo "1355"]
[BlackElo "1790"]
[Annotator "NA"]
[PlyCount "100"]
[EventDate "2019.08.02"]
[EventType "swiss"]
[EventCountry "SVK"]
[SourceTitle "playchess.com"]
[Source "ChessBase"]
[SourceQuality "1"]
[TimeControl "40/5400+30:1800+30"]

1. d4 {[%emt 0:00:00]} Nf6 {[%emt 0:00:00]} 2. c4 {[%emt 0:00:00]} e6 {[%emt 0:00:00]} 3. Nf3 {[%emt 0:00:00]} d5 {[%emt 0:00:00]} 4. Nc3 {[%emt 0:00:03]} Nbd7 {[%emt 0:00:06]} 5. Bf4 {[%emt 0:00:17]} c6 {[%emt 0:00:22]} 6. e3 {[%emt 0:00:09]} Qa5 {[%emt 0:00:25]} 7. Nd2 {[%emt 0:18:40]} Bb4 {[%emt 0:02:21]} 8. Qc1 {[%emt 0:00:30]} Nh5 {[%emt 0:06:35]} 9. a3 {[%emt 0:02:12]} Bxc3 {[%emt 0:00:18]} 10. Qxc3 {[%emt 0:00:06]} Qxc3 {[%emt 0:00:07]} 11. bxc3 {[%emt 0:00:02]} Nxf4 {[%emt 0:00:07]} 12. exf4 {[%emt 0:00:02]} Nf6 {[%emt 0:01:45]} 13. Bd3 {[%emt 0:01:32]} dxc4 {[%emt 0:01:02]} 14. Bxc4 {[%emt 0:03:06]} Nd5 {[%emt 0:00:11]} 15. Bxd5 {[%emt 0:01:13]} exd5 {[%emt 0:00:15]} 16. O-O {[%emt 0:00:11]} Bf5 {[%emt 0:00:05]} 17. Rfe1+ {[%emt 0:00:34]} Kd7 {[%emt 0:00:16]} 18. Re5 {[%emt 0:03:39]} Bd3 {[%emt 0:00:05]} 19. Re3 {[%emt 0:02:17]} Ba6 {[%emt 0:04:39]} 20. g3 {[%emt 0:08:19]} Rhe8 {[%emt 0:00:07]} 21. Rae1 {[%emt 0:00:09]} b6 {[%emt 0:01:05]} 22. Nf3 {[%emt 0:01:19]} Rxe3 {[%emt 0:00:20]} 23. fxe3 {[%emt 0:00:20]} f6 {[%emt 0:00:08]} 24. Kf2 {[%emt 0:01:25]} Re8 {[%emt 0:00:42]} 25. Nd2 {[%emt 0:00:15]} Bd3 {[%emt 0:00:14]} 26. g4 {[%emt 0:03:24]} c5 {[%emt 0:00:39]} 27. dxc5 {[%emt 0:25:09]} bxc5 {[%emt 0:00:36]} 28. c4 {[%emt 0:00:15]} dxc4 {[%emt 0:00:44]} 29. Rc1 {[%emt 0:00:53]} Kc6 {[%emt 0:04:48]} 30. Nxc4 {[%emt 0:01:16]} Kd5 {[%emt 0:19:27]} 31. Nd2 {[%emt 0:01:55]} Rc8 {[%emt 0:14:22]} 32. Kf3 {[%emt 0:03:09]} c4 {[%emt 0:02:35]} 33. e4+ {[%emt 0:02:39]} Kd4 {[%emt 0:01:57]} 34. e5 {[%emt 0:01:06]} fxe5 {[%emt 0:00:35]} 35. fxe5 {[%emt 0:00:14]} Kxe5 {[%emt 0:01:51]} 36. Ke3 {[%emt 0:03:29]} Kd5 {[%emt 0:01:36]} 37. h4 {[%emt 0:01:53]} Re8+ {[%emt 0:00:17]} 38. Kf4 {[%emt 0:00:02]} Re2 {[%emt 0:00:47]} 39. Nxc4 {[%emt 0:00:56]} Bxc4 {[%emt 0:00:17]} 40. Rd1+ {[%emt 0:00:00]} Kc5 {[%emt 0:00:00]} 41. Rd7 {[%emt 0:00:16]} Rf2+ {[%emt 0:02:25]} 42. Kg3 {[%emt 0:00:22]} Rf7 {[%emt 0:00:10]} 43. Rd8 {[%emt 0:01:57]} Kb5 {[%emt 0:00:16]} 44. g5 {[%emt 0:00:22]} g6 {[%emt 0:01:38]} 45. Rb8+ {[%emt 0:00:42]} Kc5 {[%emt 0:01:18]} 46. Rc8+ {[%emt 0:00:12]} Kd4 {[%emt 0:00:26]} 47. Rd8+ {[%emt 0:00:02]} Kc3 {[%emt 0:00:32]} 48. Rb8 {[%emt 0:00:01]} Bb3 {[%emt 0:00:47]} 49. Kg4 {[%emt 0:00:55]} a5 {[%emt 0:00:15]} 50. h5 {[%emt 0:00:15]} Bd1+ 1-0

[Event "EYCC Open-U12 2019"]
[Site "Bratislava"]
[Date "2019.08.07"]
[Round "6.46"]
[White "Aleksanyan, Davit"]
[Black "Ryabukhin, Roman"]
[Result "1-0"]
[ECO "B12"]
[WhiteElo "1797"]
[BlackElo "1445"]
[Annotator "NA"]
[PlyCount "69"]
[EventDate "2019.08.02"]
[EventType "swiss"]
[EventCountry "SVK"]
[SourceTitle "playchess.com"]
[Source "ChessBase"]
[SourceQuality "1"]
[TimeControl "40/5400+30:1800+30"]

1. e4 {[%emt 0:00:00]} c6 {[%emt 0:00:00]} 2. d4 {[%emt 0:00:00]} d5 {[%emt 0:00:00]} 3. e5 {[%emt 0:00:00]} Bf5 {[%emt 0:00:00]} 4. Be3 {[%emt 0:00:01]} e6 {[%emt 0:00:00]} 5. Nd2 {[%emt 0:00:28]} Nd7 {[%emt 0:00:33]} 6. Ngf3 {[%emt 0:00:14]} h6 {[%emt 0:00:22]} 7. Be2 {[%emt 0:00:38]} Ne7 {[%emt 0:00:22]} 8. O-O {[%emt 0:00:44]} Bh7 {[%emt 0:00:05]} 9. c4 {[%emt 0:00:26]} Nf5 {[%emt 0:00:41]} 10. c5 {[%emt 0:04:04]} Be7 {[%emt 0:01:35]} 11. b4 {[%emt 0:03:33]} g5 {[%emt 0:05:49]} 12. Nb3 {[%emt 0:04:25]} h5 {[%emt 0:08:58]} 13. Na5 {[%emt 0:01:38]} g4 {[%emt 0:09:09]} 14. Nxb7 {[%emt 0:12:58]} Qb8 {[%emt 0:07:46]} 15. Ba6 {[%emt 0:01:44]} gxf3 {[%emt 0:01:24]} 16. Qxf3 {[%emt 0:00:20]} Rg8 {[%emt 0:07:49]} 17. Qxh5 {[%emt 0:03:27]} Bg6 {[%emt 0:06:41]} 18. Qd1 {[%emt 0:05:40]} Nxe5 {[%emt 0:07:15]} 19. Bf4 {[%emt 0:07:30]} Bf6 {[%emt 0:01:22]} 20. Nd6+ {[%emt 0:01:13]} Nxd6 {[%emt 0:00:33]} 21. dxe5 {[%emt 0:07:41]} Nb5 {[%emt 0:06:46]} 22. a4 {[%emt 0:06:59]} Nc3 {[%emt 0:00:27]} 23. Qd4 {[%emt 0:01:20]} Ne4 {[%emt 0:01:19]} 24. f3 {[%emt 0:01:17]} Bh8 {[%emt 0:07:12]} 25. fxe4 {[%emt 0:02:53]} Bxe4 {[%emt 0:00:19]} 26. g3 {[%emt 0:00:50]} Qc7 {[%emt 0:02:07]} 27. b5 {[%emt 0:03:40]} Rg4 {[%emt 0:07:00]} 28. b6 {[%emt 0:05:18]} axb6 {[%emt 0:00:41]} 29. cxb6 {[%emt 0:00:16]} Qd8 {[%emt 0:05:09]} 30. Be2 {[%emt 0:00:52]} Rg8 {[%emt 0:00:45]} 31. a5 {[%emt 0:01:39]} f6 {[%emt 0:00:17]} 32. b7 {[%emt 0:03:26]} Rb8 {[%emt 0:00:26]} 33. a6 {[%emt 0:00:42]} f5 {[%emt 0:01:06]} 34. a7 {[%emt 0:01:44]} Rxb7 {[%emt 0:01:45]} 35. a8=Q {[%emt 0:00:05]} 1-0

[Event "EYCC Open-U12 2019"]
[Site "Bratislava"]
[Date "2019.08.07"]
[Round "6.47"]
[White "Mekhane, Adam"]
[Black "Vilimek, Vit"]
[Result "1-0"]
[ECO "B33"]
[WhiteElo "2040"]
[BlackElo "1523"]
[Annotator "NA"]
[PlyCount "57"]
[EventDate "2019.08.02"]
[EventType "swiss"]
[EventCountry "SVK"]
[SourceTitle "playchess.com"]
[Source "ChessBase"]
[SourceQuality "1"]
[TimeControl "40/5400+30:1800+30"]

1. e4 {[%emt 0:00:03]} c5 {[%emt 0:00:00]} 2. Nf3 {[%emt 0:00:30]} Nc6 {[%emt 0:00:00]} 3. d4 {[%emt 0:00:14]} cxd4 {[%emt 0:00:02]} 4. Nxd4 {[%emt 0:00:06]} Nf6 {[%emt 0:00:08]} 5. Nc3 {[%emt 0:00:07]} e5 {[%emt 0:00:05]} 6. Ndb5 {[%emt 0:00:35]} d6 {[%emt 0:00:08]} 7. Bg5 {[%emt 0:00:08]} a6 {[%emt 0:00:04]} 8. Na3 {[%emt 0:01:04]} b5 {[%emt 0:00:11]} 9. Bxf6 {[%emt 0:00:06]} gxf6 {[%emt 0:00:15]} 10. Nd5 {[%emt 0:00:05]} Bg7 {[%emt 0:01:30]} 11. g3 {[%emt 0:00:26]} f5 {[%emt 0:00:43]} 12. exf5 {[%emt 0:00:53]} Bxf5 {[%emt 0:00:15]} 13. Bg2 {[%emt 0:01:43]} Rc8 {[%emt 0:16:17]} 14. c3 {[%emt 0:03:59]} O-O {[%emt 0:00:42]} 15. Nc2 {[%emt 0:01:39]} Be6 {[%emt 0:02:32]} 16. Nce3 {[%emt 0:07:10]} f5 {[%emt 0:02:11]} 17. Qh5 {[%emt 0:07:35]} f4 {[%emt 0:13:56]} 18. Be4 {[%emt 0:13:31]} Rf7 {[%emt 0:01:11]} 19. Qxh7+ {[%emt 0:03:35]} Kf8 {[%emt 0:00:11]} 20. Nf5 {[%emt 0:01:22]} Rxf5 {[%emt 0:38:24]} 21. Bxf5 {[%emt 0:01:43]} Bxd5 {[%emt 0:01:58]} 22. Bxc8 {[%emt 0:09:18]} Bxh1 {[%emt 0:01:10]} 23. Bxa6 {[%emt 0:02:08]} Qb6 {[%emt 0:18:05]} 24. Qf5+ {[%emt 0:04:16]} Ke7 {[%emt 0:00:27]} 25. Bc8 {[%emt 0:10:20]} Nd8 {[%emt 0:00:38]} 26. Qd7+ {[%emt 0:03:10]} Kf8 {[%emt 0:00:16]} 27. gxf4 {[%emt 0:00:25]} exf4 {[%emt 0:01:15]} 28. O-O-O {[%emt 0:00:45]} d5 {[%emt 0:00:20]} 29. Rxh1 {[%emt 0:00:34]} 1-0

[Event "EYCC Open-U12 2019"]
[Site "Bratislava"]
[Date "2019.08.07"]
[Round "6.48"]
[White "Radaca, Nasir"]
[Black "Stevik, Patrik"]
[Result "0-1"]
[ECO "A40"]
[WhiteElo "1639"]
[BlackElo "1941"]
[Annotator "NA"]
[PlyCount "90"]
[EventDate "2019.08.02"]
[EventType "swiss"]
[EventCountry "SVK"]
[SourceTitle "playchess.com"]
[Source "ChessBase"]
[SourceQuality "1"]
[TimeControl "40/5400+30:1800+30"]

1. d4 {[%emt 0:00:00]} g6 {[%emt 0:00:00]} 2. Bf4 {[%emt 0:00:00]} d6 {[%emt 0:00:00]} 3. e3 {[%emt 0:00:07]} Bg7 {[%emt 0:00:00]} 4. Nc3 {[%emt 0:00:18]} Nf6 {[%emt 0:00:10]} 5. h4 {[%emt 0:11:16]} h5 {[%emt 0:02:35]} 6. Bd3 {[%emt 0:01:17]} a6 {[%emt 0:04:40]} 7. Qd2 {[%emt 0:00:54]} b5 {[%emt 0:00:52]} 8. f3 {[%emt 0:01:51]} Nbd7 {[%emt 0:01:21]} 9. Nge2 {[%emt 0:01:46]} c5 {[%emt 0:04:27]} 10. dxc5 {[%emt 0:04:04]} dxc5 {[%emt 0:00:08]} 11. O-O-O {[%emt 0:00:21]} Bb7 {[%emt 0:08:28]} 12. Ng3 {[%emt 0:03:00]} O-O {[%emt 0:03:27]} 13. Be4 {[%emt 0:00:46]} Bxe4 {[%emt 0:01:31]} 14. Ncxe4 {[%emt 0:00:20]} Qb6 {[%emt 0:01:55]} 15. Nxf6+ {[%emt 0:05:08]} Nxf6 {[%emt 0:00:03]} 16. e4 {[%emt 0:00:36]} b4 {[%emt 0:03:56]} 17. Qe3 {[%emt 0:04:46]} Qa5 {[%emt 0:02:33]} 18. Kb1 {[%emt 0:01:42]} c4 {[%emt 0:00:33]} 19. e5 {[%emt 0:03:41]} Nd5 {[%emt 0:00:32]} 20. Qe4 {[%emt 0:00:50]} Nxf4 {[%emt 0:06:37]} 21. Qxf4 {[%emt 0:00:13]} Qxe5 {[%emt 0:00:41]} 22. Qxe5 {[%emt 0:01:40]} Bxe5 {[%emt 0:00:01]} 23. Ne4 {[%emt 0:00:17]} Rfd8 {[%emt 0:00:36]} 24. Nc5 {[%emt 0:00:39]} Rd4 {[%emt 0:19:30]} 25. Rhe1 {[%emt 0:06:18]} Rxd1+ {[%emt 0:03:07]} 26. Rxd1 {[%emt 0:00:06]} Bg3 {[%emt 0:00:24]} 27. Na4 {[%emt 0:01:19]} Rc8 {[%emt 0:01:50]} 28. Nb6 {[%emt 0:00:23]} Rc5 {[%emt 0:04:29]} 29. Nd5 {[%emt 0:01:13]} Bxh4 {[%emt 0:01:18]} 30. Nxb4 {[%emt 0:00:25]} a5 {[%emt 0:00:12]} 31. Nd5 {[%emt 0:00:41]} e6 {[%emt 0:00:29]} 32. Nc3 {[%emt 0:01:46]} Kg7 {[%emt 0:02:42]} 33. Na4 {[%emt 0:00:50]} Re5 {[%emt 0:03:53]} 34. Nb6 {[%emt 0:00:55]} c3 {[%emt 0:01:07]} 35. Nc4 {[%emt 0:02:48]} Rc5 {[%emt 0:00:29]} 36. b3 {[%emt 0:01:14]} a4 {[%emt 0:00:24]} 37. Rd3 {[%emt 0:00:25]} axb3 {[%emt 0:00:42]} 38. cxb3 {[%emt 0:03:22]} Bf6 {[%emt 0:00:31]} 39. Kc2 {[%emt 0:00:30]} h4 {[%emt 0:06:00]} 40. Ne3 {[%emt 0:00:00]} Rg5 {[%emt 0:00:00]} 41. Ng4 {[%emt 0:01:38]} Be7 {[%emt 0:04:57]} 42. Rd7 {[%emt 0:04:55]} Kf8 {[%emt 0:03:08]} 43. Kxc3 {[%emt 0:17:35]} f5 {[%emt 0:01:17]} 44. Nf2 {[%emt 0:02:34]} Rxg2 {[%emt 0:00:14]} 45. Nd3 {[%emt 0:00:22]} h3 {[%emt 0:02:13]} 0-1

[Event "EYCC Open-U12 2019"]
[Site "Bratislava"]
[Date "2019.08.07"]
[Round "6.49"]
[White "Fizer, Marek"]
[Black "Paseka, Matyas"]
[Result "0-1"]
[ECO "B40"]
[WhiteElo "1624"]
[BlackElo "1917"]
[Annotator "NA"]
[PlyCount "146"]
[EventDate "2019.08.02"]
[EventType "swiss"]
[EventCountry "SVK"]
[SourceTitle "playchess.com"]
[Source "ChessBase"]
[SourceQuality "1"]
[TimeControl "40/5400+30:1800+30"]

1. e4 {[%emt 0:00:00]} c5 {[%emt 0:00:00]} 2. Nf3 {[%emt 0:00:00]} e6 {[%emt 0:00:00]} 3. c4 {[%emt 0:00:16]} d6 {[%emt 0:01:20]} 4. Nc3 {[%emt 0:01:01]} e5 {[%emt 0:02:10]} 5. Be2 {[%emt 0:01:21]} Nc6 {[%emt 0:00:18]} 6. O-O {[%emt 0:01:05]} g6 {[%emt 0:00:29]} 7. d3 {[%emt 0:01:10]} Bg7 {[%emt 0:00:23]} 8. h3 {[%emt 0:00:57]} Nge7 {[%emt 0:00:18]} 9. Nh2 {[%emt 0:03:01]} O-O {[%emt 0:03:18]} 10. Ng4 {[%emt 0:10:26]} f5 {[%emt 0:03:12]} 11. exf5 {[%emt 0:02:04]} Nxf5 {[%emt 0:08:21]} 12. Bf3 {[%emt 0:04:06]} Nfd4 {[%emt 0:02:34]} 13. Bd5+ {[%emt 0:02:58]} Ne6 {[%emt 0:04:11]} 14. Ne4 {[%emt 0:22:45]} Kh8 {[%emt 0:13:41]} 15. Bxe6 {[%emt 0:05:40]} Bxe6 {[%emt 0:00:33]} 16. Bg5 {[%emt 0:04:33]} Bxg4 {[%emt 0:05:20]} 17. Qxg4 {[%emt 0:00:51]} Qc7 {[%emt 0:01:03]} 18. Qe6 {[%emt 0:01:26]} h6 {[%emt 0:04:43]} 19. Be3 {[%emt 0:00:57]} Rad8 {[%emt 0:04:14]} 20. Qxg6 {[%emt 0:00:40]} Ne7 {[%emt 0:00:24]} 21. Qg4 {[%emt 0:03:33]} b6 {[%emt 0:07:36]} 22. Ng3 {[%emt 0:09:32]} d5 {[%emt 0:02:34]} 23. Qh4 {[%emt 0:06:43]} Ng6 {[%emt 0:06:24]} 24. Qh5 {[%emt 0:01:15]} Nf4 {[%emt 0:00:15]} 25. Bxf4 {[%emt 0:01:43]} exf4 {[%emt 0:00:19]} 26. Nf5 {[%emt 0:04:59]} Rf6 {[%emt 0:01:13]} 27. Rae1 {[%emt 0:04:33]} Rdf8 {[%emt 0:05:25]} 28. Nxg7 {[%emt 0:00:27]} Kxg7 {[%emt 0:00:46]} 29. Qxd5 {[%emt 0:01:02]} f3 {[%emt 0:01:37]} 30. Qe5 {[%emt 0:03:12]} Qc8 {[%emt 0:00:50]} 31. Re4 {[%emt 0:01:29]} fxg2 {[%emt 0:01:17]} 32. Rg4+ {[%emt 0:01:07]} Kh8 {[%emt 0:08:29]} 33. Kxg2 {[%emt 0:00:48]} Qc6+ {[%emt 0:00:25]} 34. Qe4 {[%emt 0:00:20]} Qd6 {[%emt 0:00:22]} 35. f4 {[%emt 0:00:49]} Re6 {[%emt 0:00:38]} 36. Qf3 {[%emt 0:00:23]} Rfe8 {[%emt 0:00:08]} 37. Rf2 {[%emt 0:00:06]} Re3 {[%emt 0:00:25]} 38. Qb7 {[%emt 0:00:40]} R8e7 {[%emt 0:00:14]} 39. Qa8+ {[%emt 0:00:19]} Re8 {[%emt 0:00:24]} 40. Qxa7 {[%emt 0:00:00]} Qc6+ {[%emt 0:00:00]} 41. Kh2 {[%emt 0:01:34]} R8e7 {[%emt 0:23:26]} 42. Qa3 {[%emt 0:00:41]} h5 {[%emt 0:01:56]} 43. Qc3+ {[%emt 0:03:40]} Kh7 {[%emt 0:00:05]} 44. Rg3 {[%emt 0:08:50]} Rxg3 {[%emt 0:01:07]} 45. Kxg3 {[%emt 0:00:06]} Rg7+ {[%emt 0:00:06]} 46. Kh2 {[%emt 0:00:22]} Qg6 {[%emt 0:00:11]} 47. Qxg7+ {[%emt 0:03:36]} Qxg7 {[%emt 0:00:05]} 48. b3 {[%emt 0:02:42]} h4 {[%emt 0:00:23]} 49. Rg2 {[%emt 0:02:07]} Qa1 {[%emt 0:00:56]} 50. Rg1 {[%emt 0:00:45]} Qxa2+ {[%emt 0:00:13]} 51. Rg2 {[%emt 0:01:12]} Qxb3 {[%emt 0:00:23]} 52. Rg4 {[%emt 0:00:26]} Qc2+ {[%emt 0:00:46]} 53. Kh1 {[%emt 0:00:07]} Qxd3 {[%emt 0:00:08]} 54. Rxh4+ {[%emt 0:00:07]} Kg6 {[%emt 0:00:24]} 55. Kg2 {[%emt 0:00:20]} Qe2+ {[%emt 0:00:57]} 56. Kg3 {[%emt 0:00:46]} Qe1+ {[%emt 0:00:08]} 57. Kg4 {[%emt 0:00:08]} Qe2+ {[%emt 0:03:42]} 58. Kg3 {[%emt 0:00:07]} Kf5 {[%emt 0:00:28]} 59. Rh6 {[%emt 0:02:44]} Qe3+ {[%emt 0:02:42]} 60. Kg2 {[%emt 0:00:25]} Qd2+ {[%emt 0:00:23]} 61. Kh1 {[%emt 0:00:47]} Kxf4 {[%emt 0:02:15]} 62. Rxb6 {[%emt 0:00:22]} Kg3 {[%emt 0:00:24]} 63. Rb3+ {[%emt 0:00:32]} Kf2 {[%emt 0:00:09]} 64. Rb1 {[%emt 0:00:36]} Qc2 {[%emt 0:00:33]} 65. Rg1 {[%emt 0:00:33]} Qxc4 {[%emt 0:00:53]} 66. Rg2+ {[%emt 0:00:15]} Kf3 {[%emt 0:00:07]} 67. Kh2 {[%emt 0:00:21]} Qf4+ {[%emt 0:00:20]} 68. Kg1 {[%emt 0:00:10]} Qd4+ {[%emt 0:00:19]} 69. Kh2 {[%emt 0:00:18]} c4 {[%emt 0:00:34]} 70. Rg3+ {[%emt 0:00:23]} Kf2 {[%emt 0:00:21]} 71. Rg2+ {[%emt 0:00:09]} Kf1 {[%emt 0:00:08]} 72. Kh1 {[%emt 0:00:32]} Qe4 {[%emt 0:00:10]} 73. Kh2 {[%emt 0:00:05]} Qxg2# 0-1